fUST/lending_fUST_20250425
["ID","MTS","AMOUNT","RATE_DAILY","PERIOD"]
[358891808,1745530246697,-500.0,0.00017808,2]
[358891810,1745530246707,-500.0,0.00017808,2]
[358891811,1745530246716,-500.0,0.00017808,2]
[358891812,1745530246726,-1074.02,0.00017808,2]
[358891813,1745530246735,-1054.67,0.00017808,2]
[358891814,1745530246744,-500.0,0.00017808,2]
[358891815,1745530246753,-868.17,0.00017808,2]
[358891817,1745530246763,-2397.61,0.00017808,2]
[358891818,1745530246772,-500.0,0.00017808,2]
[358891819,1745530246782,-916.94,0.00017808,2]
[358891820,1745530246791,-500.0,0.00017808,2]
[358891821,1745530246800,-500.0,0.00017808,2]
[358891822,1745530246810,-500.0,0.00017808,2]
[358891823,1745530246820,-797.97,0.00017808,2]
[358891824,1745530246830,-809.15,0.00017808,2]
[358891825,1745530246840,-651.18,0.00017808,2]
[358891826,1745530246850,-940.95,0.00017808,2]
[358891827,1745530246866,-500.2,0.00017808,2]
[358891828,1745530246876,-1026.98,0.00017808,2]
[358891829,1745530246887,-581.69,0.00017808,2]
[358891830,1745530246902,-500.0,0.00017808,2]
[358891831,1745530246912,-500.0,0.00017808,2]
[358891832,1745530246923,-500.0,0.00017808,2]
[358891833,1745530246938,-654.0,0.00017808,2]
[358891834,1745530246948,-500.0,0.00017808,2]
[358891835,1745530246957,-1236.33,0.00017808,2]
[358891836,1745530246967,-500.0,0.00017808,2]
[358891837,1745530246977,-500.0,0.00017808,2]
[358891838,1745530246986,-500.0,0.00017808,2]
[358891839,1745530246996,-500.0,0.00017808,2]
[358891840,1745530247006,-526.88,0.00017808,2]
[358891841,1745530247015,-502.63,0.00017808,2]
[358891842,1745530247024,-890.24,0.00017808,2]
[358891843,1745530247034,-587.8,0.00017808,2]
[358891844,1745530247043,-500.0,0.00017808,2]
[358891845,1745530247053,-500.0,0.00017808,2]
[358891846,1745530247062,-500.0,0.00017808,2]
[358891847,1745530247072,-500.0,0.00017808,2]
[358891848,1745530247081,-488.95499466,0.00017808,2]
[358891849,1745530247092,-500.0,0.00017808,2]
[358891850,1745530247102,-500.0,0.00017808,2]
[358891851,1745530247111,-500.0,0.00017808,2]
[358891852,1745530247120,-500.0,0.00017808,2]
[358891853,1745530247130,-3117.73,0.00017808,2]
[358891854,1745530247140,-1179.97,0.00017808,2]
[358891855,1745530247150,-882.38,0.00017808,2]
[358891856,1745530247160,-185.78523048,0.00017808,2]
[358891857,1745530247170,-500.0,0.00017808,2]
[358891858,1745530247180,-500.0,0.00017808,2]
[358891859,1745530247191,-581.93,0.00017808,2]
[358891860,1745530247202,-500.0,0.00017808,2]
[358891861,1745530247212,-951.56,0.00017808,2]
[358891862,1745530247223,-500.0,0.00017808,2]
[358891863,1745530247233,-500.0,0.00017808,2]
[358891864,1745530247243,-500.0,0.00017808,2]
[358891865,1745530247252,-500.0,0.00017808,2]
[358891866,1745530247262,-500.0,0.00017808,2]
[358891867,1745530247271,-500.0,0.00017808,2]
[358891868,1745530247281,-500.0,0.00017808,2]
[358891869,1745530247291,-1018.05,0.00017808,2]
[358891870,1745530247301,-831.56,0.00017808,2]
[358891871,1745530247310,-5982.13,0.00017808,2]
[358891872,1745530247320,-500.0,0.00017808,2]
[358891873,1745530247330,-500.0,0.00017808,2]
[358891874,1745530247340,-500.0,0.00017808,2]
[358891875,1745530247350,-4118.45,0.00017808,2]
[358891876,1745530247360,-2607.51,0.00017808,2]
[358891877,1745530247370,-500.0,0.00017808,2]
[358891878,1745530247379,-982.34,0.00017808,2]
[358891879,1745530247389,-500.0,0.00017808,2]
[358891880,1745530247399,-639.32,0.00017808,2]
[358891881,1745530247409,-2481.36,0.00017808,2]
[358891882,1745530247418,-500.0,0.00017808,2]
[358891883,1745530247428,-500.0,0.00017808,2]
[358891884,1745530247437,-663.45,0.00017808,2]
[358891885,1745530247447,-509.78,0.00017808,2]
[358891886,1745530247456,-658.63,0.00017808,2]
[358891887,1745530247466,-500.0,0.00017808,2]
[358891888,1745530247476,-500.0,0.00017808,2]
[358891889,1745530247486,-500.0,0.00017808,2]
[358891890,1745530247496,-1003.7,0.00017808,2]
[358891891,1745530247506,-591.44,0.00017808,2]
[358891892,1745530247516,-500.0,0.00017808,2]
[358891893,1745530247526,-500.0,0.00017808,2]
[358891894,1745530247535,-1128.84,0.00017808,2]
[358891895,1745530247545,-846.69,0.00017808,2]
[358891896,1745530247555,-500.0,0.00017808,2]
[358891897,1745530247566,-3203.11,0.00017808,2]
[358891898,1745530247576,-500.0,0.00017808,2]
[358891899,1745530247586,-691.88,0.00017808,2]
[358891900,1745530247595,-4254.07,0.00017808,2]
[358891901,1745530247605,-2473.16,0.00017808,2]
[358891902,1745530247615,-500.0,0.00017808,2]
[358891903,1745530247624,-500.0,0.00017808,2]
[358891904,1745530247634,-500.0,0.00017808,2]
[358891905,1745530247643,-539.98,0.00017808,2]
[358891906,1745530247652,-521.19,0.00017808,2]
[358891907,1745530247662,-500.0,0.00017808,2]
[358891908,1745530247672,-786.41,0.00017808,2]
[358891909,1745530247681,-676.94,0.00017808,2]
[358891910,1745530247690,-747.8,0.00017808,2]
[358891911,1745530247700,-7192.82,0.00017808,2]
[358891912,1745530247709,-2848.49,0.00017808,2]
[358891913,1745530247718,-1278.75,0.00017808,2]
[358891914,1745530247728,-5744.86,0.00017808,2]
[358891915,1745530247737,-2755.62,0.00017808,2]
[358891916,1745530247747,-500.0,0.00017808,2]
[358891917,1745530247757,-500.0,0.00017808,2]
[358891918,1745530247767,-508.99,0.00017808,2]
[358891919,1745530247776,-715.13,0.00017808,2]
[358891920,1745530247785,-500.0,0.00017808,2]
[358891921,1745530247795,-566.04,0.00017808,2]
[358891922,1745530247804,-500.0,0.00017808,2]
[358891923,1745530247814,-556.96,0.00017808,2]
[358891924,1745530247823,-2969.86,0.00017808,2]
[358891925,1745530247834,-1128.08,0.00017808,2]
[358891926,1745530247843,-500.0,0.00017808,2]
[358891927,1745530247854,-1125.16,0.00017808,2]
[358891928,1745530247864,-874.71,0.00017808,2]
[358891929,1745530247874,-500.0,0.00017808,2]
[358891930,1745530247883,-698.21,0.00017808,2]
[358891931,1745530247894,-510.03,0.00017808,2]
[358891932,1745530247903,-679.0527685,0.00017906,2]
[358891933,1745530247914,-2264.421,0.00017987,2]
[358891934,1745530247925,-179.9640072,0.00017994,2]
[358891935,1745530247934,-500.0,0.00018073,2]
[358891936,1745530247943,-500.0,0.00018073,2]
[358891937,1745530247953,-631.4680575,0.00018073,2]
[358891938,1745530247962,-502.77104746,0.00018073,2]
[358891939,1745530247974,-500.26799344,0.00018073,2]
[358891940,1745530247985,-297.88171536,0.00018073,2]
[358891941,1745530247995,-500.0,0.00018073,2]
[358891942,1745530248005,-500.0,0.00018073,2]
[358891943,1745530248014,-500.0,0.00018073,2]
[358891944,1745530248025,-500.0,0.00018073,2]
[358891945,1745530248035,-500.0,0.00018073,2]
[358891946,1745530248045,-500.0,0.00018073,2]
[358891947,1745530248054,-500.0,0.00018073,2]
[358891948,1745530248064,-500.0,0.00018073,2]
[358891949,1745530248074,-500.0,0.00018073,2]
[358891950,1745530248084,-500.0,0.00018073,2]
[358891951,1745530248094,-500.0,0.00018073,2]
[358891952,1745530248103,-500.0,0.00018073,2]
[358891953,1745530248114,-500.0,0.00018073,2]
[358891954,1745530248123,-500.0,0.00018073,2]
[358891955,1745530248134,-500.0,0.00018073,2]
[358891956,1745530248144,-500.0,0.00018073,2]
[358891957,1745530248154,-500.0,0.00018073,2]
[358891958,1745530248164,-500.0,0.00018073,2]
[358891959,1745530248174,-500.0,0.00018073,2]
[358891960,1745530248184,-418.82180813,0.00018073,2]
[358891961,1745530248349,-81.17819187,0.00018073,2]
[358891962,1745530248360,-151.0,0.00018073,2]
[358891963,1745530248370,-151.0,0.00018082,2]
[358891964,1745530248380,-500.0,0.00018082,2]
[358891965,1745530248391,-500.0,0.00018082,2]
[358891966,1745530248400,-960.9,0.00018082,2]
[358891967,1745530248410,-23.8088835,0.00018082,2]
[358891968,1745530248423,-476.1911165,0.00018082,2]
[358891969,1745530248433,-500.0,0.00018082,2]
[358891970,1745530248442,-151.0,0.00018082,2]
[358891971,1745530248452,-500.0,0.00018082,2]
[358891972,1745530248461,-1024.59,0.00018082,2]
[358891973,1745530248472,-500.0,0.00018082,2]
[358891974,1745530248615,-500.0,0.00018082,2]
[358891975,1745530248626,-500.0,0.00018082,2]
[358891976,1745530248636,-500.0,0.00018082,2]
[358891977,1745530248646,-500.0,0.00018082,2]
[358891978,1745530248655,-1868.56,0.00018082,2]
[358891979,1745530248665,-81.20630834,0.00018082,2]
[358891980,1745530248677,-621.60369166,0.00018082,2]
[358891981,1745530248687,-500.0,0.00018082,2]
[358891982,1745530248697,-500.0,0.00018082,2]
[358891983,1745530248706,-500.0,0.00018082,2]
[358891984,1745530248716,-500.0,0.00018082,2]
[358891985,1745530248727,-175.97864094,0.00018082,2]
[358891986,1745530248739,-54.62763106,0.00018082,2]
[358891987,1745530248748,-500.0,0.00018082,2]
[358891988,1745530248758,-500.0,0.00018082,2]
[358891989,1745530248768,-500.0,0.00018082,2]
[358891990,1745530248778,-648.84551683,0.00018082,2]
[358891991,1745530248788,-1074.02,0.00018082,2]
[358891992,1745530248797,-1054.67,0.00018082,2]
[358891993,1745530248807,-500.0,0.00018082,2]
[358891994,1745530248817,-868.17,0.00018082,2]
[358891995,1745530248827,-2397.61,0.00018082,2]
[358891996,1745530248837,-500.0,0.00018082,2]
[358891997,1745530248849,-916.94,0.00018082,2]
[358891998,1745530248859,-500.0,0.00018082,2]
[358891999,1745530248869,-500.0,0.00018082,2]
[358892000,1745530248879,-500.0,0.00018082,2]
[358892001,1745530248888,-797.97,0.00018082,2]
[358892002,1745530248898,-809.15,0.00018082,2]
[358892003,1745530248908,-651.18,0.00018082,2]
[358892004,1745530248918,-940.95,0.00018082,2]
[358892005,1745530248931,-500.2,0.00018082,2]
[358892006,1745530248942,-521.5800099,0.00018082,2]
[358892007,1745530248954,-505.3999901,0.00018082,2]
[358892008,1745530248964,-581.69,0.00018082,2]
[358892009,1745530248976,-369.52504246,0.00018082,2]
[358892010,1745530249137,-1071.78,0.0001726,2]
[358892011,1745530249147,-1071.78,0.00017534,2]
[358892012,1745530249158,-1071.78,0.00017808,2]
[358892013,1745530249168,-130.47495754,0.00018082,2]
[358892014,1745530249178,-500.0,0.00018082,2]
[358892015,1745530249188,-279.23445346,0.00018082,2]
[358892016,1745530249198,-654.0,0.00018082,2]
[358892017,1745530249209,-500.0,0.00018082,2]
[358892018,1745530249219,-1236.33,0.00018082,2]
[358892019,1745530249230,-500.0,0.00018082,2]
[358892020,1745530249239,-500.0,0.00018082,2]
[358892021,1745530249249,-500.0,0.00018082,2]
[358892022,1745530249258,-500.0,0.00018082,2]
[358892023,1745530249268,-526.88,0.00018082,2]
[358892024,1745530249278,-502.63,0.00018082,2]
[358892025,1745530249288,-890.24,0.00018082,2]
[358892026,1745530249298,-587.8,0.00018082,2]
[358892027,1745530249308,-500.0,0.00018082,2]
[358892028,1745530249317,-500.0,0.00018082,2]
[358892029,1745530249327,-500.0,0.00018082,2]
[358892030,1745530249337,-500.0,0.00018082,2]
[358892031,1745530249346,-500.0,0.00018082,2]
[358892032,1745530249356,-500.0,0.00018082,2]
[358892033,1745530249366,-500.0,0.00018082,2]
[358892034,1745530249375,-500.0,0.00018082,2]
[358892035,1745530249385,-3117.73,0.00018082,2]
[358892036,1745530249395,-1179.97,0.00018082,2]
[358892037,1745530249404,-882.38,0.00018082,2]
[358892038,1745530249414,-500.0,0.00018082,2]
[358892039,1745530249424,-500.0,0.00018082,2]
[358892040,1745530249435,-581.93,0.00018082,2]
[358892041,1745530249444,-500.0,0.00018082,2]
[358892042,1745530249454,-951.56,0.00018082,2]
[358892043,1745530249464,-500.0,0.00018082,2]
[358892044,1745530249474,-500.0,0.00018082,2]
[358892045,1745530249484,-500.0,0.00018082,2]
[358892046,1745530249493,-500.0,0.00018082,2]
[358892047,1745530249504,-500.0,0.00018082,2]
[358892048,1745530249513,-500.0,0.00018082,2]
[358892049,1745530249523,-1018.05,0.00018082,2]
[358892050,1745530249532,-831.56,0.00018082,2]
[358892051,1745530249542,-5982.13,0.00018082,2]
[358892052,1745530249551,-500.0,0.00018082,2]
[358892053,1745530249560,-126.47702279,0.00018082,2]
[358892054,1745530249796,-373.52297721,0.00018082,2]
[358892055,1745530249813,-486.75404183,0.00018082,2]
[358892056,1745530249825,-183.767928,0.00018082,2]
[358892057,1745530249841,-109.27863071,0.00018082,2]
[358892058,1745530249861,-74.48929729,0.00018082,2]
[358892059,1745530249876,-4118.45,0.00018082,2]
[358892060,1745530249893,-1536.6103713,0.00018082,2]
[358892061,1745530249919,-1070.8996287,0.00018082,2]
[358892062,1745530249935,-500.0,0.00018082,2]
[358892063,1745530249951,-982.34,0.00018082,2]
[358892064,1745530249964,-500.0,0.00018082,2]
[358892065,1745530249978,-639.32,0.00018082,2]
[358892066,1745530249995,-2481.36,0.00018082,2]
[358892067,1745530250009,-500.0,0.00018082,2]
[358892068,1745530250023,-500.0,0.00018082,2]
[358892069,1745530250036,-663.45,0.00018082,2]
[358892070,1745530250049,-509.78,0.00018082,2]
[358892071,1745530250064,-658.63,0.00018082,2]
[358892072,1745530250080,-500.0,0.00018082,2]
[358892073,1745530250096,-500.0,0.00018082,2]
[358892074,1745530250112,-500.0,0.00018082,2]
[358892075,1745530250128,-293.42393453,0.00018082,2]
[358892076,1745530250147,-262.248948,0.00018082,2]
[358892077,1745530250161,-448.02711747,0.00018082,2]
[358892078,1745530250172,-591.44,0.00018082,2]
[358892079,1745530250185,-500.0,0.00018082,2]
[358892080,1745530250201,-500.0,0.00018082,2]
[358892081,1745530250217,-1128.84,0.00018082,2]
[358892082,1745530250228,-846.69,0.00018082,2]
[358892083,1745530250241,-500.0,0.00018082,2]
[358892084,1745530250256,-3203.11,0.00018082,2]
[358892085,1745530250270,-500.0,0.00018082,2]
[358892086,1745530250283,-691.88,0.00018082,2]
[358892087,1745530250294,-4254.07,0.00018082,2]
[358892088,1745530250312,-2473.16,0.00018082,2]
[358892089,1745530250325,-500.0,0.00018082,2]
[358892090,1745530250338,-500.0,0.00018082,2]
[358892091,1745530250351,-500.0,0.00018082,2]
[358892092,1745530250365,-539.98,0.00018082,2]
[358892093,1745530250378,-521.19,0.00018082,2]
[358892094,1745530250392,-500.0,0.00018082,2]
[358892095,1745530250405,-786.41,0.00018082,2]
[358892096,1745530250417,-676.94,0.00018082,2]
[358892097,1745530250430,-747.8,0.00018082,2]
[358892098,1745530250442,-7192.82,0.00018082,2]
[358892099,1745530250455,-2848.49,0.00018082,2]
[358892100,1745530250469,-1278.75,0.00018082,2]
[358892101,1745530250482,-5744.86,0.00018082,2]
[358892102,1745530250495,-2755.62,0.00018082,2]
[358892103,1745530250508,-500.0,0.00018082,2]
[358892104,1745530250521,-500.0,0.00018082,2]
[358892105,1745530250534,-508.99,0.00018082,2]
[358892106,1745530250548,-715.13,0.00018082,2]
[358892107,1745530250560,-500.0,0.00018082,2]
[358892108,1745530250574,-566.04,0.00018082,2]
[358892109,1745530250586,-151.0,0.00018082,2]
[358892110,1745530250599,-500.0,0.00018082,2]
[358892111,1745530250612,-556.96,0.00018082,2]
[358892112,1745530250625,-2969.86,0.00018082,2]
[358892113,1745530250638,-1128.08,0.00018082,2]
[358892114,1745530250651,-500.0,0.00018082,2]
[358892115,1745530250665,-1125.16,0.00018082,2]
[358892116,1745530250678,-874.71,0.00018082,2]
[358892117,1745530250691,-500.0,0.00018082,2]
[358892118,1745530250704,-698.21,0.00018082,2]
[358892119,1745530250718,-510.03,0.00018082,2]
[358892120,1745530250731,-1071.78,0.00018082,2]
[358892121,1745530250744,-2089.45721763,0.00018087,2]
[358892122,1745530250921,-7134.66245798,0.00018087,2]
[358892123,1745530250935,-3176.52274623,0.00018087,2]
[358892124,1745530261380,24900.0,0.00014465,2]
[358892125,1745530262768,753.09705082,0.00014934,2]
[358892126,1745530280391,51666.27149752,0.00014934,2]
[358892127,1745530318801,317.10400057,0.00014932,2]
[358892128,1745530328842,199.75883343,0.00014933,2]
[358892129,1745530344493,250.0,0.00014934,2]
[358892130,1745530361088,1000.0,0.00014934,2]
[358892133,1745530402020,459.4576944,0.00014649,2]
[358892134,1745530410250,1106.22554831,0.00014932,2]
[358892135,1745530458079,250.0,0.00014931,2]
[358892136,1745530549320,277.46600049,0.0001493,2]
[358892139,1745530720352,166.485,0.00014727,2]
[358892167,1745530774841,242.78275042,0.00014927,2]
[358892185,1745530932389,3971.0399282,0.00014647,2]
[358892187,1745531019007,212.43490667,0.00014924,2]
[358892188,1745531203812,158.6676885,0.00014647,2]
[358892189,1745531229118,-300.0,0.0001502,2]
[358892190,1745531229141,-442.26638321,0.00015021,2]
[358892191,1745531229166,-500.0,0.00015021,2]
[358892192,1745531229190,-500.0,0.00015021,2]
[358892193,1745531229221,-500.0,0.00015021,2]
[358892194,1745531229245,-250.06667809,0.00015021,2]
[358892195,1745531229268,-198.11568953,0.00015021,2]
[358892196,1745531229302,-500.0,0.00015021,2]
[358892197,1745531229332,-500.0,0.00015021,2]
[358892198,1745531229364,-500.0,0.00015021,2]
[358892199,1745531229395,-500.0,0.00015021,2]
[358892200,1745531229425,-500.0,0.00015021,2]
[358892201,1745531229456,-500.0,0.00015021,2]
[358892202,1745531229486,-500.0,0.00015021,2]
[358892203,1745531229516,-500.0,0.00015021,2]
[358892204,1745531229755,-500.0,0.00015021,2]
[358892205,1745531229787,-500.0,0.00015021,2]
[358892206,1745531229818,-500.0,0.00015021,2]
[358892207,1745531229849,-500.0,0.00015021,2]
[358892208,1745531229879,-390.941082,0.00015021,2]
[358892209,1745531229910,-500.0,0.00015021,2]
[358892210,1745531229940,-500.0,0.00015021,2]
[358892211,1745531229975,-500.0,0.00015021,2]
[358892212,1745531230007,-500.0,0.00015021,2]
[358892213,1745531230037,-500.0,0.00015021,2]
[358892214,1745531230070,-500.0,0.00015021,2]
[358892215,1745531230103,-500.0,0.00015021,2]
[358892216,1745531230134,-500.0,0.00015021,2]
[358892217,1745531230166,-500.0,0.00015021,2]
[358892218,1745531230197,-500.0,0.00015021,2]
[358892219,1745531230229,-500.0,0.00015021,2]
[358892220,1745531230261,-500.0,0.00015021,2]
[358892221,1745531230292,-500.0,0.00015021,2]
[358892222,1745531230323,-500.0,0.00015021,2]
[358892223,1745531230355,-500.0,0.00015021,2]
[358892224,1745531230390,-500.0,0.00015021,2]
[358892225,1745531230420,-500.0,0.00015021,2]
[358892226,1745531230450,-500.0,0.00015021,2]
[358892227,1745531230480,-500.0,0.00015021,2]
[358892228,1745531230510,-500.0,0.00015021,2]
[358892229,1745531230540,-500.0,0.00015021,2]
[358892230,1745531230569,-500.0,0.00015021,2]
[358892231,1745531230600,-500.0,0.00015021,2]
[358892232,1745531230629,-500.0,0.00015021,2]
[358892233,1745531230660,-500.0,0.00015021,2]
[358892234,1745531230690,-500.0,0.00015021,2]
[358892235,1745531230720,-500.0,0.00015021,2]
[358892236,1745531230751,-500.0,0.00015021,2]
[358892237,1745531230781,-11178.74117669,0.00015021,2]
[358892238,1745531230812,-11178.74117669,0.00015021,2]
[358892239,1745531230843,-2927.12797524,0.00015021,2]
[358892242,1745531296644,20564.7805391,0.00014543,2]
[358892243,1745531342995,-203.99020476,0.00015019,2]
[358892244,1745531349122,-96.00979524,0.00015019,2]
[358892245,1745531349145,-477.71549299,0.0001502,2]
[358892246,1745531349176,-3050.28096334,0.0001502,2]
[358892247,1745531349207,-2134.72871241,0.0001502,2]
[358892254,1745531413886,-152.0,0.00015019,2]
[358892255,1745531418800,-148.0,0.00015019,2]
[358892256,1745531424708,5000.0,0.00025,30]
[358892263,1745531431716,-500.0,0.0001502,2]
[358892264,1745531431727,-915.55225093,0.0001502,2]
[358892265,1745531431737,-3050.28096334,0.0001502,2]
[358892266,1745531431748,-3050.28096334,0.0001502,2]
[358892267,1745531431758,-3050.28096334,0.0001502,2]
[358892268,1745531431769,-3050.28096334,0.0001502,2]
[358892269,1745531431778,-3050.28096334,0.0001502,2]
[358892270,1745531431789,-3050.28096334,0.0001502,2]
[358892271,1745531431799,-3050.28096334,0.0001502,2]
[358892272,1745531431810,-3050.28096334,0.0001502,2]
[358892273,1745531431821,-3050.28096334,0.0001502,2]
[358892274,1745531431831,-3050.28096334,0.0001502,2]
[358892275,1745531431842,-3050.28096334,0.0001502,2]
[358892276,1745531431853,-3050.28096334,0.0001502,2]
[358892277,1745531431862,-3050.28096334,0.0001502,2]
[358892278,1745531431873,-3050.28096334,0.0001502,2]
[358892279,1745531431883,-3050.28096334,0.0001502,2]
[358892280,1745531431894,-3050.28096334,0.0001502,2]
[358892281,1745531431910,-3050.28096334,0.0001502,2]
[358892282,1745531431920,-3050.28096334,0.0001502,2]
[358892283,1745531431930,-3050.28096334,0.0001502,2]
[358892284,1745531431941,-3050.28096334,0.0001502,2]
[358892285,1745531431951,-3050.28096334,0.0001502,2]
[358892286,1745531431961,-3050.28096334,0.0001502,2]
[358892287,1745531431971,-3050.28096334,0.0001502,2]
[358892288,1745531431983,-3050.28096334,0.0001502,2]
[358892289,1745531431992,-3050.28096334,0.0001502,2]
[358892290,1745531432003,-3050.28096334,0.0001502,2]
[358892291,1745531432013,-3050.28096334,0.0001502,2]
[358892292,1745531432023,-3050.28096334,0.0001502,2]
[358892293,1745531432033,-3050.28096334,0.0001502,2]
[358892294,1745531432043,-3050.28096334,0.0001502,2]
[358892295,1745531432055,-3050.28096334,0.0001502,2]
[358892296,1745531432065,-3050.28096334,0.0001502,2]
[358892297,1745531432077,-3050.28096334,0.0001502,2]
[358892298,1745531432088,-3050.28096334,0.0001502,2]
[358892299,1745531432098,-3050.28096334,0.0001502,2]
[358892300,1745531432107,-3050.28096334,0.0001502,2]
[358892301,1745531432118,-3050.28096334,0.0001502,2]
[358892302,1745531432128,-3050.28096334,0.0001502,2]
[358892303,1745531432137,-3050.28096334,0.0001502,2]
[358892304,1745531432147,-3050.28096334,0.0001502,2]
[358892306,1745531432158,-8598.51925006,0.0001502,2]
[358892308,1745531432168,-8598.51925006,0.0001502,2]
[358892310,1745531432178,-8598.51925006,0.0001502,2]
[358892312,1745531432188,-8598.51925006,0.0001502,2]
[358892314,1745531432198,-8598.51925006,0.0001502,2]
[358892316,1745531432207,-8598.51925006,0.0001502,2]
[358892318,1745531432218,-8598.51925006,0.0001502,2]
[358892320,1745531432227,-8598.51925006,0.0001502,2]
[358892322,1745531432237,-8598.51925006,0.0001502,2]
[358892324,1745531432246,-8598.51925006,0.0001502,2]
[358892326,1745531432256,-221.42125723,0.0001502,2]
[358892330,1745531432287,-8377.09799283,0.0001502,2]
[358892332,1745531432298,-8598.51925006,0.0001502,2]
[358892334,1745531432308,-8598.51925006,0.0001502,2]
[358892336,1745531432318,-2949.03322963,0.0001502,2]
[358892338,1745531432330,-5356.03520353,0.0001502,2]
[358892340,1745531432343,-293.4508169,0.0001502,2]
[358892342,1745531432353,-1319.5491831,0.0001502,2]
[358892344,1745531432365,-1538.66651632,0.0001502,2]
[358892377,1745531437812,-5740.30355064,0.0001502,2]
[358892379,1745531437822,-8598.51925006,0.0001502,2]
[358892381,1745531437831,-8598.51925006,0.0001502,2]
[358892383,1745531437841,-8598.51925006,0.0001502,2]
[358892385,1745531437851,-8598.51925006,0.0001502,2]
[358892387,1745531437860,-8598.51925006,0.0001502,2]
[358892389,1745531437869,-8598.51925006,0.0001502,2]
[358892391,1745531437880,-8598.51925006,0.0001502,2]
[358892393,1745531437889,-8598.51925006,0.0001502,2]
[358892395,1745531437900,-8598.51925006,0.0001502,2]
[358892397,1745531437910,-8598.51925006,0.0001502,2]
[358892399,1745531437919,-8598.51925006,0.0001502,2]
[358892401,1745531437931,-8598.51925006,0.0001502,2]
[358892403,1745531437940,-8276.07477819,0.0001502,2]
[358892405,1745531437950,-8276.07477819,0.0001502,2]
[358892407,1745531437959,-8276.07477819,0.0001502,2]
[358892409,1745531437970,-8276.07477819,0.0001502,2]
[358892411,1745531437979,-8276.07477819,0.0001502,2]
[358892414,1745531437989,-8276.07477819,0.0001502,2]
[358892416,1745531437999,-8276.07477819,0.0001502,2]
[358892418,1745531438010,-8276.07477819,0.0001502,2]
[358892420,1745531438020,-8276.07477819,0.0001502,2]
[358892422,1745531438030,-8276.07477819,0.0001502,2]
[358892424,1745531438040,-8276.07477819,0.0001502,2]
[358892426,1745531438050,-8276.07477819,0.0001502,2]
[358892428,1745531438059,-8276.07477819,0.0001502,2]
[358892430,1745531438070,-8276.07477819,0.0001502,2]
[358892432,1745531438079,-8276.07477819,0.0001502,2]
[358892434,1745531438090,-8276.07477819,0.0001502,2]
[358892435,1745531438099,-8276.07477819,0.0001502,2]
[358892437,1745531438109,-8276.07477819,0.0001502,2]
[358892439,1745531438119,-160.0,0.00015029,2]
[358892441,1745531438129,-184.4899656,0.00015229,2]
[358892442,1745531438139,-151.09248164,0.00015294,2]
[358892443,1745531438149,-3541.21604762,0.0001624,2]
[358892444,1745531438158,-420.0,0.00016437,2]
[358892445,1745531438168,-532.44371056,0.00016438,2]
[358892446,1745531438178,-500.0,0.00016438,2]
[358892447,1745531438188,-500.0,0.00016438,2]
[358892448,1745531438198,-500.0,0.00016438,2]
[358892449,1745531438207,-500.0,0.00016438,2]
[358892450,1745531438217,-500.0,0.00016438,2]
[358892451,1745531438227,-500.0,0.00016438,2]
[358892452,1745531438237,-500.0,0.00016438,2]
[358892453,1745531438247,-500.0,0.00016438,2]
[358892454,1745531438257,-500.0,0.00016438,2]
[358892455,1745531438267,-503.19275022,0.00016438,2]
[358892456,1745531438278,-500.0,0.00016438,2]
[358892457,1745531438287,-289.47091283,0.00016438,2]